bitfinex/quotes_BTCUSD_20251019
["timestamp","ask_amount","ask_price","bid_price","bid_amount"]
[1760882887927,0.18499676,108110.0,108100.0,0.09465146]
[1760882888266,3.0,108110.0,108100.0,0.09465146]
[1760882888469,3.18499676,108110.0,108100.0,0.09465146]
[1760882888696,0.18499676,108110.0,108100.0,0.09465146]
[1760882889058,0.18499676,108110.0,108100.0,0.09365146]
[1760882893638,0.18499676,108110.0,108100.0,0.24035146]
[1760882894995,3.18499676,108110.0,108100.0,0.24035146]
[1760882898269,3.18499676,108110.0,108100.0,0.09365146]
[1760882904069,3.18499676,108110.0,108100.0,0.24035146]
[1760882907218,3.20230769,108110.0,108100.0,0.24035146]
[1760882910375,3.20230769,108110.0,108100.0,9.146e-05]
[1760882910563,3.20230769,108110.0,108100.0,0.09365146]
[1760882913499,3.54230769,108110.0,108100.0,0.09365146]
[1760882914244,3.54233206,108110.0,108100.0,0.09365146]
[1760882914530,3.54233206,108110.0,108100.0,9.146e-05]
[1760882921059,3.20233206,108110.0,108100.0,9.146e-05]
[1760882921698,3.20233206,108110.0,108100.0,0.14679146]
[1760882926997,3.20233206,108110.0,108100.0,0.24035146]
[1760882928970,3.20234073,108110.0,108100.0,0.24035146]
[1760882930091,3.18499676,108110.0,108100.0,0.24035146]
[1760882931269,3.18499676,108110.0,108100.0,0.14679146]
[1760882931496,3.18499676,108110.0,108100.0,0.24035146]
[1760882932081,3.1825455,108110.0,108100.0,0.24035146]
[1760882932492,3.18499676,108110.0,108100.0,0.42536533]
[1760882933864,3.18499676,108110.0,108100.0,0.42636533]
[1760882936018,3.18499676,108110.0,108100.0,0.24135146]
[1760882936806,3.18499676,108110.0,108100.0,0.42636533]
[1760882937248,3.18499676,108110.0,108100.0,0.24135146]
[1760882937910,3.18499676,108110.0,108100.0,0.46254761]
[1760882938126,3.18499676,108110.0,108100.0,0.37194462]
[1760882950159,0.16303669,108120.0,108100.0,0.55695849]
[1760882950403,3.0,108110.0,108100.0,0.55695849]
[1760882950604,3.0,108110.0,108100.0,0.37194462]
[1760882951011,0.18499676,108110.0,108100.0,0.37194462]
[1760882951223,0.18499676,108110.0,108100.0,0.27738462]
[1760882951651,0.18499676,108110.0,108100.0,0.14679146]
[1760882951859,0.18499676,108110.0,108100.0,0.24031146]
[1760882953416,3.18499676,108110.0,108100.0,0.14779146]
[1760882953792,3.18499676,108110.0,108100.0,0.24131146]
[1760882954363,3.18499676,108110.0,108100.0,0.24031146]
[1760882961975,3.18499676,108110.0,108100.0,0.55591849]
[1760882961976,3.0,108110.0,108100.0,0.55591849]
[1760882962411,3.18499676,108110.0,108100.0,0.55591849]
[1760882962863,0.18499676,108110.0,108100.0,0.55591849]
[1760882963316,0.18499676,108110.0,108100.0,0.55691849]
[1760882964640,0.18499676,108110.0,108100.0,0.33572234]
[1760882964881,0.18499676,108110.0,108100.0,0.37190462]
[1760882965406,0.16303669,108120.0,108100.0,0.37190462]
[1760882965607,3.18499676,108110.0,108100.0,0.37190462]
[1760882965814,3.0,108110.0,108100.0,0.55691849]
[1760882966022,2.82354429,108110.0,108100.0,0.55691849]
[1760882966163,3.0,108110.0,108100.0,0.55691849]
[1760882966566,3.18499676,108110.0,108100.0,0.55691849]
[1760882966781,0.18499676,108110.0,108100.0,0.55591849]
[1760882968295,0.18499676,108110.0,108100.0,0.51973621]
[1760882968869,0.18499676,108110.0,108100.0,0.55691849]
[1760882969595,3.0,108110.0,108100.0,0.55691849]
[1760882970733,0.18659284,108120.0,108110.0,0.18499676]
[1760882971487,0.00161177,108120.0,108110.0,0.46228992]
[1760882971944,0.52496403,108130.0,108110.0,0.46228992]
[1760882972163,3.0,108120.0,108110.0,0.46228992]
[1760882972384,3.0,108120.0,108110.0,0.55576992]
[1760882973321,3.18497965,108120.0,108110.0,0.55576992]
[1760882973540,0.18497965,108120.0,108110.0,0.55576992]
[1760882974976,0.00161156,108120.0,108110.0,0.55576992]
[1760882975196,0.00161156,108120.0,108110.0,0.55676992]
[1760882976261,0.18659121,108120.0,108110.0,0.55676992]
[1760882977140,0.00161156,108120.0,108110.0,0.55676992]
[1760882977356,0.18659121,108120.0,108110.0,0.55676992]
[1760882978914,0.00161156,108120.0,108110.0,0.55676992]
[1760882979127,0.18659121,108120.0,108110.0,0.55676992]
[1760882979595,0.00161156,108120.0,108110.0,0.41006992]
[1760882979827,0.18528158,108150.0,108130.0,0.18495599]
[1760882980043,3.0,108140.0,108130.0,0.31554915]
[1760882980260,3.0,108140.0,108130.0,0.40898915]
[1760882982899,0.18494544,108140.0,108130.0,0.40898915]
[1760882983758,0.18494544,108140.0,108130.0,0.22403316]
[1760882984213,0.18497827,108130.0,108120.0,0.22116193]
[1760882984432,0.18497827,108130.0,108120.0,0.40901281]
[1760882984895,0.19419271,108140.0,108120.0,0.40901281]
[1760882985136,3.0,108130.0,108120.0,0.40901281]
[1760882985771,0.1849458,108140.0,108120.0,0.41001281]
[1760882986002,0.1849458,108140.0,108130.0,0.00073456]
[1760882986231,0.1849458,108140.0,108130.0,0.00176502]
[1760882986701,0.1849458,108140.0,108130.0,0.09520502]
[1760882987711,0.1849458,108140.0,108130.0,0.09738446]
[1760882988142,0.1849458,108140.0,108130.0,0.282347]
[1760882988364,0.1849458,108140.0,108130.0,0.27840254]
[1760882988831,0.1849458,108140.0,108130.0,0.27940254]
[1760882989058,0.1849458,108140.0,108130.0,0.09444]
[1760882989268,0.1849458,108140.0,108130.0,0.24114]
[1760882989927,0.18655717,108140.0,108130.0,0.24114]
[1760882990642,0.18655717,108140.0,108130.0,0.5566957]
[1760882990643,0.00161137,108140.0,108130.0,0.5566957]
[1760882993961,0.00035324,108150.0,108140.0,0.22112772]
[1760882994174,0.00035324,108150.0,108140.0,0.3155386]
[1760882994760,0.18528158,108150.0,108140.0,0.3155386]
[1760882994983,0.18528158,108150.0,108140.0,0.4622386]
[1760882995190,0.18533098,108150.0,108140.0,0.4622386]
[1760882995390,0.00040264,108150.0,108140.0,0.4622386]
[1760882996283,0.18533098,108150.0,108140.0,0.4622386]
[1760882997279,0.00040264,108150.0,108140.0,0.4622386]
[1760883000318,0.18533098,108150.0,108140.0,0.4622386]
[1760883000524,0.00040264,108150.0,108140.0,0.4622386]
[1760883001175,0.00040264,108150.0,108140.0,0.8022386]
[1760883001388,0.00040264,108150.0,108140.0,0.83003314]
[1760883001824,0.00040264,108150.0,108140.0,0.84003313]
[1760883002047,0.00040264,108150.0,108140.0,0.93343313]
[1760883003286,0.00040264,108150.0,108140.0,0.93443313]
[1760883003698,0.00040264,108150.0,108140.0,0.93343313]
[1760883004108,0.00040264,108150.0,108140.0,0.93543313]
[1760883005380,1e-08,108150.0,108140.0,0.93543313]
[1760883005547,0.1864538,108200.0,108190.0,0.03618228]
[1760883005747,0.18694839,108200.0,108190.0,0.22571699]
[1760883005978,0.00049459,108200.0,108190.0,0.40885312]
[1760883006777,0.00049459,108200.0,108190.0,0.40985312]
[1760883006997,0.01949936,108200.0,108190.0,0.40985312]
[1760883007244,0.00049459,108200.0,108190.0,0.40985312]
[1760883011287,0.00406173,108200.0,108190.0,0.40985312]
[1760883011767,0.00406173,108200.0,108190.0,0.13159316]
[1760883012002,0.00406173,108200.0,108190.0,0.4108243]
[1760883012231,0.00406173,108200.0,108190.0,0.40981312]
[1760883015124,0.00406173,108200.0,108190.0,0.37363084]
[1760883015546,0.00406173,108200.0,108190.0,0.40981312]
[1760883015775,0.00406173,108200.0,108190.0,0.22495316]
[1760883015982,0.18890461,108200.0,108190.0,0.13159316]
[1760883016209,0.18890461,108200.0,108190.0,0.09541088]
[1760883016500,0.18890461,108200.0,108190.0,0.18877088]
[1760883016734,3.18484288,108200.0,108190.0,0.18877088]
[1760883016974,0.20203737,108200.0,108190.0,0.18877088]
[1760883017408,3.20203737,108200.0,108190.0,0.22495316]
[1760883017927,3.20203737,108200.0,108190.0,0.22395316]
[1760883018331,3.20203737,108200.0,108190.0,0.03618228]
[1760883018527,3.20203737,108200.0,108190.0,0.12950228]
[1760883018692,3.20203737,108200.0,108190.0,0.09332]
[1760883018898,0.20203737,108200.0,108190.0,0.13121291]
[1760883019095,0.01719449,108200.0,108190.0,0.4113987]
[1760883019309,0.01719449,108200.0,108190.0,0.40877312]
[1760883019497,0.20203737,108200.0,108190.0,0.40877312]
[1760883021371,0.20203737,108200.0,108190.0,0.22391316]
[1760883024273,0.20203737,108200.0,108190.0,0.37061316]
[1760883025852,0.20203737,108200.0,108190.0,0.55547312]
[1760883026057,0.01719449,108200.0,108190.0,0.55547312]
[1760883026707,0.20203737,108200.0,108190.0,0.55547312]
[1760883026923,0.20203737,108200.0,108190.0,0.37061316]
[1760883029940,0.20203737,108200.0,108190.0,0.55547312]
[1760883030169,0.20203737,108200.0,108190.0,0.37061316]
[1760883031644,0.20203737,108200.0,108190.0,0.55547312]
[1760883032746,0.01719449,108200.0,108190.0,0.55547312]
[1760883035703,0.00161033,108210.0,108200.0,0.18484288]
[1760883035917,0.01907129,108210.0,108200.0,0.31543604]
[1760883036117,0.01746096,108210.0,108200.0,0.46213604]
[1760883036342,0.01781391,108210.0,108200.0,0.70693604]
[1760883036802,0.0005012,108210.0,108200.0,0.70693604]
[1760883037251,0.0005012,108210.0,108200.0,1.04693604]
[1760883038939,0.0005412,108210.0,108200.0,1.04693604]
[1760883039333,0.0005412,108210.0,108200.0,1.04793604]
[1760883039737,0.0005412,108210.0,108200.0,1.04693604]
[1760883040181,0.0005412,108210.0,108200.0,1.04793604]
[1760883041665,0.0005412,108210.0,108200.0,1.35793603]
[1760883041872,0.0005412,108210.0,108200.0,1.11313603]
[1760883042487,0.0005412,108210.0,108200.0,1.12313602]
[1760883042958,0.17727991,108250.0,108230.0,0.18479164]
[1760883043194,0.18477468,108240.0,108230.0,0.13059316]
[1760883043439,0.20205161,108240.0,108230.0,0.22598087]
[1760883043671,0.20205161,108240.0,108230.0,0.4086648]
[1760883043893,0.01727693,108240.0,108230.0,0.5553648]
[1760883044362,0.2020515,108240.0,108230.0,0.5553648]
[1760883045254,0.05166451,108240.0,108230.0,0.5553648]
[1760883045500,0.18490701,108250.0,108240.0,0.03618228]
[1760883045715,0.18490701,108250.0,108240.0,0.31750808]
[1760883045935,0.18490701,108250.0,108240.0,0.31536773]
[1760883046195,0.18490701,108250.0,108240.0,0.46206773]
[1760883046404,0.00014817,108250.0,108240.0,0.46206773]
[1760883046600,0.00175785,108250.0,108240.0,0.46206773]
[1760883047433,0.18651535,108250.0,108240.0,0.46206773]
[1760883047641,0.18490567,108250.0,108240.0,0.46206773]
[1760883049306,0.18651534,108250.0,108240.0,0.46206773]
[1760883049511,0.18181534,108250.0,108240.0,0.46206773]
[1760883049710,0.18322653,108250.0,108240.0,0.46206773]
[1760883050601,0.18322653,108250.0,108240.0,0.31536773]
[1760883050913,0.18322653,108250.0,108240.0,0.13059316]
[1760883051091,0.18322653,108250.0,108240.0,0.13223425]
[1760883051496,0.18322653,108250.0,108240.0,0.13344857]
[1760883051933,0.18322653,108250.0,108240.0,0.13517479]
[1760883052468,0.18322653,108250.0,108240.0,0.28187479]
[1760883052675,0.18322653,108250.0,108240.0,0.27729316]
[1760883053022,0.18322653,108250.0,108240.0,0.13059316]
[1760883053220,0.18322653,108250.0,108240.0,0.13213102]
[1760883054603,0.00302086,108250.0,108240.0,0.41234285]
[1760883054805,0.18777836,108250.0,108240.0,0.22383316]
[1760883064620,0.00302086,108250.0,108240.0,0.40860773]
[1760883064832,0.00302086,108250.0,108240.0,0.55530773]
[1760883066896,0.18777836,108250.0,108240.0,0.55530773]
[1760883067252,0.00302086,108250.0,108240.0,0.55530773]
[1760883068757,0.18777836,108250.0,108240.0,0.55530773]
[1760883069538,0.18777836,108250.0,108240.0,0.46206773]
[1760883069752,0.18777836,108250.0,108240.0,0.55530773]
[1760883069987,0.18777836,108250.0,108240.0,0.46206773]
[1760883070196,0.18777836,108250.0,108240.0,0.55530773]
[1760883070706,0.18777836,108250.0,108240.0,0.46206773]
[1760883071023,0.00302086,108250.0,108240.0,0.55530773]
[1760883071420,0.00302086,108250.0,108240.0,0.46206773]
[1760883071858,0.00141119,108250.0,108240.0,0.55530773]
[1760883073136,0.18616869,108250.0,108240.0,0.55530773]
[1760883073426,0.18616869,108250.0,108240.0,0.46206773]
[1760883073624,0.18616869,108250.0,108240.0,0.55530773]
[1760883074048,0.18602894,108250.0,108240.0,0.37153316]
[1760883074239,0.18602894,108250.0,108240.0,0.55630773]
[1760883074447,0.00127144,108250.0,108240.0,0.55630773]
[1760883074658,0.00127144,108250.0,108240.0,0.46306773]
[1760883075016,0.00127144,108250.0,108240.0,0.55630773]
[1760883075375,0.00127144,108250.0,108240.0,0.46306773]
[1760883075551,0.00127144,108250.0,108240.0,0.55630773]
[1760883076136,0.00127144,108250.0,108240.0,0.46306773]
[1760883076306,0.00127144,108250.0,108240.0,0.55630773]
[1760883080526,0.18602894,108250.0,108240.0,0.55630773]
[1760883081677,0.18602894,108250.0,108240.0,0.46306773]
[1760883081890,0.18602894,108250.0,108240.0,0.55626773]
[1760883082110,0.00127144,108250.0,108240.0,0.46306773]
[1760883082315,0.00127144,108250.0,108240.0,0.55626773]
[1760883084153,0.1847411,108260.0,108250.0,0.22093978]
[1760883084352,0.1847411,108260.0,108250.0,0.13059316]
[1760883084639,0.00988681,108260.0,108250.0,0.13261016]
[1760883084834,1.908e-05,108300.0,108290.0,0.19468925]
[1760883085039,0.00016725,108300.0,108290.0,1.09200241]
[1760883085213,0.00191102,108300.0,108290.0,1.09200241]
[1760883085412,0.00191102,108300.0,108290.0,0.96528241]
[1760883085622,0.00191102,108300.0,108290.0,1.10925055]
[1760883086447,0.00191102,108300.0,108290.0,1.01581055]
[1760883087078,0.00191102,108300.0,108290.0,1.10921055]
[1760883087476,0.00191102,108300.0,108290.0,0.79921056]
[1760883087678,0.00191102,108300.0,108290.0,0.71681055]
[1760883087878,0.00191102,108300.0,108290.0,0.88105004]
[1760883088088,0.00191102,108300.0,108290.0,0.78765004]
[1760883088289,0.00191102,108300.0,108290.0,0.88105004]
[1760883089190,0.00191102,108300.0,108290.0,0.71681055]
[1760883089398,0.00191102,108300.0,108290.0,0.81021055]
[1760883090025,0.00191102,108300.0,108290.0,0.87991966]
[1760883090391,0.00191102,108300.0,108290.0,0.76689056]
[1760883090590,0.00191102,108300.0,108290.0,0.74964242]
[1760883090794,0.00191102,108300.0,108290.0,0.62010014]
[1760883090994,0.00191102,108300.0,108290.0,0.28010014]
[1760883091399,0.00191102,108300.0,108290.0,0.37350014]
[1760883091787,0.00191102,108300.0,108290.0,0.40968242]
[1760883092441,0.00191102,108300.0,108290.0,0.31628242]
[1760883092629,0.00191102,108300.0,108290.0,0.40968242]
[1760883093642,0.00191102,108300.0,108290.0,0.31628242]
[1760883093852,0.00191102,108300.0,108290.0,0.40968242]
[1760883095838,0.00191102,108300.0,108290.0,0.74968242]
[1760883098632,0.00191102,108300.0,108290.0,0.65628242]
[1760883098838,0.00191102,108300.0,108290.0,0.74964242]
[1760883099919,0.00191102,108300.0,108290.0,0.65628242]
[1760883100249,0.00191102,108300.0,108290.0,0.74960242]
[1760883100660,0.0002,108310.0,108300.0,0.32946118]
[1760883100858,0.0006937,108310.0,108300.0,0.42387206]
[1760883102933,0.0006937,108310.0,108300.0,0.51719206]
[1760883103359,0.0006937,108310.0,108300.0,0.51819206]
[1760883106304,0.00104615,108310.0,108300.0,0.51795206]
[1760883107111,0.00104615,108310.0,108300.0,0.37336308]
[1760883107774,0.00104615,108310.0,108300.0,0.28008308]
[1760883107933,0.00104615,108310.0,108300.0,0.37336308]
[1760883108334,0.1857013,108310.0,108300.0,0.09541088]
[1760883108550,0.1857013,108310.0,108300.0,0.22487316]
[1760883108751,0.1807013,108310.0,108300.0,0.22487316]
[1760883110122,3.1807013,108310.0,108300.0,0.13159316]
[1760883110343,3.1807013,108310.0,108300.0,0.001]
[1760883110504,3.18465515,108310.0,108300.0,0.09428]
[1760883110715,0.18465515,108310.0,108300.0,0.2789522]
[1760883110926,3.18465515,108310.0,108300.0,0.09428]
[1760883112853,3.18465515,108310.0,108300.0,0.001]
[1760883113247,3.18465515,108310.0,108300.0,0.09424]
[1760883114066,3.17965515,108310.0,108300.0,0.09424]
[1760883114885,3.17965515,108310.0,108300.0,0.09324]
[1760883117983,3.17955407,108310.0,108300.0,0.09324]
[1760883118705,3.51955407,108310.0,108300.0,0.09324]
[1760883118908,3.0,108280.0,108260.0,0.18652503]
[1760883119123,0.18470631,108280.0,108270.0,0.18765088]
[1760883119548,0.18470631,108280.0,108270.0,0.22383316]
[1760883120310,0.19392372,108290.0,108280.0,0.18470631]
[1760883120311,3.18469117,108290.0,108280.0,0.18470631]
[1760883120523,0.19392028,108300.0,108280.0,0.31529947]
[1760883120871,3.19390931,108300.0,108290.0,0.09324]
[1760883121873,3.20377216,108300.0,108290.0,0.09324]
[1760883122697,3.52468926,108290.0,108280.0,0.13059316]
[1760883122933,0.18472173,108280.0,108270.0,0.03618228]
[1760883123101,0.53392372,108290.0,108270.0,0.41092495]
[1760883123102,0.00923446,108290.0,108270.0,0.41092495]
[1760883123300,0.18468973,108290.0,108280.0,0.31529947]
[1760883123757,0.20377216,108300.0,108280.0,0.31529947]
[1760883123960,0.54377216,108300.0,108290.0,0.09324]
[1760883125075,3.54377216,108300.0,108290.0,0.09324]
[1760883125497,0.52468926,108290.0,108280.0,0.001]
[1760883125629,3.52468926,108290.0,108280.0,0.09324]
[1760883126877,3.52468926,108290.0,108280.0,0.09424]
[1760883127451,3.52468926,108290.0,108280.0,0.001]
[1760883127623,3.52468926,108290.0,108280.0,0.09424]
[1760883128282,3.52468926,108290.0,108280.0,0.09324]
[1760883135113,3.52568926,108290.0,108280.0,0.09324]
[1760883136578,3.52568926,108290.0,108270.0,0.00144624]
[1760883136781,3.52470631,108280.0,108270.0,0.00144624]
[1760883136985,3.52470631,108280.0,108270.0,0.09464624]
[1760883148539,3.52631567,108280.0,108270.0,0.09464624]
[1760883152587,3.52631567,108280.0,108270.0,0.40996277]
[1760883152588,0.00160936,108280.0,108270.0,0.40996277]
[1760883152822,0.00986285,108300.0,108290.0,0.22087154]
[1760883153021,0.5002,108320.0,108310.0,0.18465515]
[1760883153223,0.0002,108320.0,108310.0,0.40848831]
[1760883153562,0.18519051,108320.0,108310.0,0.22383316]
[1760883153765,3.18519051,108320.0,108310.0,0.22383316]
[1760883154790,3.1846722,108300.0,108280.0,0.18615064]
[1760883154986,3.1846722,108300.0,108290.0,0.22519929]
[1760883155214,3.1846722,108300.0,108290.0,0.22383316]
[1760883156000,0.19389531,108310.0,108290.0,0.40852242]
[1760883156225,3.0,108300.0,108290.0,0.40852242]
[1760883156432,0.1846722,108300.0,108290.0,0.40852242]
[1760883156640,0.1846722,108300.0,108290.0,0.22383316]
[1760883157190,0.1846722,108300.0,108290.0,0.40852242]
[1760883157601,0.1846722,108300.0,108290.0,0.22383316]
[1760883159552,0.1846722,108300.0,108290.0,0.13059316]
[1760883159754,0.1846722,108300.0,108290.0,0.22540346]
[1760883159951,0.1846722,108300.0,108290.0,0.22379316]
[1760883161876,0.18468926,108290.0,108280.0,0.00193976]
[1760883162099,0.18468926,108290.0,108280.0,0.22573292]
[1760883162696,0.18468926,108290.0,108280.0,0.41043923]
[1760883163670,3.18468926,108290.0,108280.0,0.03812204]
[1760883163854,3.18468926,108290.0,108280.0,0.00193976]
[1760883164063,3.18468926,108290.0,108280.0,0.09513976]
[1760883165982,3.52468926,108290.0,108280.0,0.09513976]
[1760883170939,0.18628129,108300.0,108280.0,0.27984607]
[1760883171149,0.18468926,108290.0,108280.0,0.27984607]
[1760883172475,0.18468926,108290.0,108280.0,0.09513976]
[1760883172900,3.0,108290.0,108280.0,0.27984607]
[1760883174174,3.18468926,108290.0,108280.0,0.27984607]
[1760883174382,0.18468926,108290.0,108280.0,0.27984607]
[1760883176236,3.0,108290.0,108280.0,0.27984607]
[1760883177191,0.18468926,108290.0,108280.0,0.27984607]
[1760883177610,0.18468926,108290.0,108280.0,0.09513976]
[1760883178866,3.18468926,108290.0,108280.0,0.09513976]
[1760883181272,3.18468926,108290.0,108280.0,0.00193976]
[1760883181461,3.18468926,108290.0,108280.0,0.09513976]
[1760883181697,3.52468926,108290.0,108280.0,0.00193976]
[1760883181909,3.52468926,108290.0,108280.0,0.09513976]
[1760883186058,3.52468926,108290.0,108280.0,0.00193976]
[1760883186213,3.52468926,108290.0,108280.0,0.09513976]
[1760883186826,3.52468926,108290.0,108280.0,0.00193976]
[1760883187164,3.52468926,108290.0,108280.0,0.09513976]
[1760883187878,3.52468926,108290.0,108280.0,0.00193976]
[1760883188086,3.52438926,108290.0,108280.0,0.09513976]
[1760883188286,3.61880014,108290.0,108280.0,0.00193976]
[1760883188494,3.63610412,108290.0,108280.0,0.00193976]
[1760883189047,0.18476126,108250.0,108230.0,0.19394667]
[1760883189276,0.18476126,108250.0,108240.0,0.37337311]
[1760883189492,0.18476126,108250.0,108240.0,0.37238545]
[1760883189768,0.18475451,108260.0,108240.0,0.40856773]
[1760883190108,0.19084869,108260.0,108240.0,0.40856773]
[1760883191362,0.00609418,108260.0,108250.0,0.22117723]
[1760883191502,0.19083461,108260.0,108250.0,0.13059316]
[1760883191698,0.18474043,108260.0,108250.0,0.13059316]
[1760883192458,0.18475998,108250.0,108230.0,0.19417413]
[1760883192654,0.18475998,108250.0,108240.0,0.22379316]
[1760883192863,0.18475998,108250.0,108240.0,0.40856773]
[1760883193110,0.19089103,108260.0,108240.0,0.40856773]
[1760883194145,0.1847575,108250.0,108240.0,0.40856773]
[1760883194778,0.1847575,108250.0,108240.0,0.40997866]
[1760883195594,0.1847575,108250.0,108240.0,0.41097866]
[1760883196340,0.19089103,108260.0,108240.0,0.41097866]
[1760883196498,0.1847575,108250.0,108240.0,0.40956773]
[1760883197535,0.1847575,108250.0,108240.0,0.40856773]
[1760883197734,0.19089103,108260.0,108240.0,0.40856773]
[1760883198405,0.1847575,108250.0,108240.0,0.40856773]
[1760883198576,0.1847575,108250.0,108240.0,0.22479316]
[1760883199087,0.1847575,108250.0,108240.0,0.22379316]
[1760883199395,0.1847575,108250.0,108240.0,0.40856773]
[1760883200944,0.1847575,108250.0,108240.0,0.40956773]
[1760883203145,0.1847575,108250.0,108240.0,0.13159316]
[1760883203293,3.1847575,108250.0,108240.0,0.0942]
[1760883203494,0.1847575,108250.0,108240.0,0.09561093]
[1760883203891,3.1847575,108250.0,108240.0,0.09561093]
[1760883209714,3.0,108250.0,108240.0,0.2803855]
[1760883209896,3.1847575,108250.0,108240.0,0.2803855]
[1760883210648,0.1847575,108250.0,108240.0,0.2803855]
[1760883211647,0.1847575,108250.0,108240.0,0.09561093]
[1760883212360,0.1847575,108250.0,108240.0,0.2803855]
[1760883213264,3.0,108250.0,108240.0,0.2803855]
[1760883214913,0.1847575,108250.0,108240.0,0.2803855]
[1760883218806,0.18802014,108260.0,108240.0,0.2803855]
[1760883219012,3.0,108250.0,108240.0,0.27897457]
[1760883219208,3.1847575,108250.0,108240.0,0.27897457]
[1760883219428,0.1847575,108250.0,108240.0,0.0942]
[1760883219618,0.1847575,108250.0,108240.0,0.0932]
[1760883220078,3.1847575,108250.0,108240.0,0.0932]
[1760883220396,0.18477457,108240.0,108230.0,0.22112209]
[1760883220516,0.1847575,108250.0,108230.0,0.31553297]
[1760883220738,3.1847575,108250.0,108240.0,0.0942]
[1760883221373,3.1847575,108250.0,108240.0,0.0932]
[1760883223008,0.18477457,108240.0,108230.0,0.31653198]
[1760883223213,0.18477457,108240.0,108230.0,0.40973198]
[1760883223419,0.18477457,108240.0,108230.0,0.40873198]
[1760883224540,0.18477457,108240.0,108230.0,0.40973198]
[1760883224741,0.21253526,108250.0,108230.0,0.40973198]
[1760883224921,3.0,108240.0,108230.0,0.31829581]
[1760883225283,3.18477457,108240.0,108230.0,0.002912]
[1760883225562,3.18477457,108240.0,108230.0,0.096112]
[1760883227922,3.21255508,108240.0,108230.0,0.096112]
[1760883228427,3.18477457,108240.0,108230.0,0.096112]
[1760883231283,3.21255642,108240.0,108230.0,0.096112]
[1760883231998,3.21255642,108240.0,108230.0,0.095112]
[1760883233191,3.02778185,108240.0,108230.0,0.095112]
[1760883233394,3.21255642,108240.0,108230.0,0.095112]
[1760883235331,3.6469673,108240.0,108230.0,0.001912]
[1760883235631,3.66428106,108240.0,108230.0,0.001912]
[1760883236583,3.67428105,108240.0,108230.0,1e-08]
[1760883236938,3.68428104,108240.0,108230.0,1e-08]
[1760883237834,3.68589117,108240.0,108230.0,1e-08]
[1760883238656,3.6907225,108240.0,108230.0,1e-08]
[1760883238846,3.6917225,108240.0,108230.0,1e-08]
[1760883239504,3.6907225,108240.0,108230.0,1e-08]
[1760883239801,3.6927225,108240.0,108230.0,1e-08]
[1760883240301,3.52484288,108200.0,108190.0,0.02456401]
[1760883240517,3.52484288,108200.0,108190.0,0.02471218]
[1760883240849,3.55263351,108200.0,108190.0,0.02471218]
[1760883243421,0.55263351,108200.0,108190.0,0.02471218]
[1760883243774,3.55263351,108200.0,108190.0,0.02471218]
[1760883244257,3.55263351,108200.0,108190.0,0.00014817]
[1760883244431,3.55263351,108200.0,108190.0,0.09338817]
[1760883245171,3.55263351,108200.0,108190.0,0.00014817]
[1760883245940,3.55263351,108200.0,108190.0,0.00156008]
[1760883246287,3.64704439,108200.0,108190.0,0.00156008]
[1760883246489,3.66428786,108200.0,108190.0,0.00156008]
[1760883251046,3.56987698,108200.0,108190.0,0.00156008]
[1760883251249,3.21263351,108200.0,108190.0,0.00156008]
[1760883251444,3.55263351,108200.0,108190.0,0.00156008]
[1760883254232,3.56986698,108200.0,108190.0,0.00156008]
[1760883262339,0.18485996,108190.0,108180.0,0.0004]
[1760883262561,3.29650431,108190.0,108180.0,0.00089459]
[1760883262987,3.32430385,108190.0,108180.0,0.00089459]
[1760883263841,3.66430385,108190.0,108180.0,0.00089459]
[1760883267949,3.66430385,108190.0,108180.0,0.00124767]
[1760883269157,3.66591447,108190.0,108180.0,0.00124767]
[1760883270711,3.66430385,108190.0,108180.0,0.00124767]
[1760883272068,3.66591448,108190.0,108180.0,0.00124767]
[1760883275455,3.66691448,108190.0,108180.0,0.00124767]
[1760883277350,3.66591448,108190.0,108180.0,0.00124767]
[1760883279011,3.5715036,108190.0,108180.0,0.00124767]
[1760883279724,3.5715036,108190.0,108180.0,0.09448767]
[1760883280825,3.54370406,108190.0,108180.0,0.09448767]
[1760883281034,3.54209343,108190.0,108180.0,0.09448767]
[1760883282448,3.54209343,108190.0,108180.0,0.27936472]
[1760883283129,3.54209343,108190.0,108180.0,0.09448767]
[1760883283331,3.54209343,108190.0,108180.0,0.27936472]
[1760883283837,3.54209343,108190.0,108180.0,0.09448767]
[1760883286000,3.54217143,108190.0,108180.0,0.09448767]
[1760883286411,3.54170729,108190.0,108180.0,0.09448767]
[1760883289141,3.54170729,108190.0,108180.0,0.00124767]
[1760883289343,3.63611817,108190.0,108180.0,0.00124767]
[1760883289777,3.63982468,108190.0,108180.0,0.00124767]
[1760883290688,3.64082468,108190.0,108180.0,0.00124767]
[1760883299957,3.5464138,108190.0,108180.0,0.00124767]
[1760883300739,3.18439526,108190.0,108180.0,0.00124767]
[1760883301473,3.18439526,108190.0,108180.0,0.09448767]
[1760883301787,3.52439526,108190.0,108180.0,0.09448767]
[1760883301960,0.18484288,108200.0,108180.0,0.40995788]
[1760883302160,0.18485996,108190.0,108180.0,0.40995788]
[1760883302739,0.18485996,108190.0,108180.0,0.22508083]
[1760883303153,0.18485996,108190.0,108180.0,0.00124767]
[1760883303355,3.52485996,108190.0,108180.0,0.09448767]
[1760883304489,3.54217286,108190.0,108180.0,0.00124767]
[1760883305636,3.54378345,108190.0,108180.0,0.00124767]
[1760883308663,3.54217286,108190.0,108180.0,0.00124767]
[1760883312661,3.54378346,108190.0,108180.0,0.00124767]
[1760883313006,3.63819434,108190.0,108180.0,0.00124767]
[1760883313412,3.66599189,108190.0,108180.0,0.00124767]
[1760883314020,3.66438129,108190.0,108180.0,0.00124767]
[1760883315362,0.18487705,108180.0,108170.0,0.0004]
[1760883315563,3.29660083,108180.0,108170.0,0.00054825]
[1760883318023,3.20218995,108180.0,108170.0,0.00054825]
[1760883318246,3.18487705,108180.0,108170.0,0.00054825]
[1760883319021,3.29660893,108180.0,108170.0,0.00054825]
[1760883319602,0.52489414,108170.0,108160.0,0.0004]
[1760883319835,3.54221778,108170.0,108160.0,0.0004]
[1760883320310,0.18494544,108140.0,108130.0,0.09364]
[1760883320544,0.18494544,108140.0,108130.0,0.22428256]
[1760883320902,3.0,108140.0,108130.0,0.4092451]
[1760883321103,0.18492834,108150.0,108130.0,0.4092451]
[1760883321413,3.0,108140.0,108130.0,0.4092451]
[1760883321613,3.18494544,108140.0,108130.0,0.4092451]
[1760883321829,0.18494544,108140.0,108130.0,0.4092451]
[1760883322033,0.18494544,108140.0,108130.0,0.4102451]
[1760883322342,3.0,108150.0,108140.0,0.22112772]
[1760883322522,3.0073277,108150.0,108140.0,0.22112772]
[1760883322723,0.0073277,108150.0,108140.0,0.22112772]
[1760883322956,3.0,108150.0,108140.0,0.22112772]
[1760883323516,3.18492834,108150.0,108140.0,0.22112772]
[1760883323732,0.18492834,108150.0,108140.0,0.03618228]
[1760883323932,0.19196469,108150.0,108140.0,0.03618228]
[1760883324086,0.19196469,108150.0,108140.0,0.22112772]
[1760883324501,3.18492834,108150.0,108140.0,0.22212772]
[1760883324695,3.0,108150.0,108140.0,0.22212772]
[1760883325226,0.19204506,108150.0,108140.0,0.22212772]